[Event "Titled Tuesday Blitz March 28 Late 2023"]
[White "Gholami Orimi, Mahdi"]
[Black "Costachi, Mihnea"]
[WhiteFideId "12558486"]
[BlackFideId "1217518"]
[WhiteElo "2363"]
[BlackElo "2456"]
[Result "0-1"]
[Round "06"]
[TimeControl "180+2"]
[Date "2023.03.28"]
[WhiteClock "0:00:03"]
[BlackClock "0:00:07"]

1. d4 {[%clk 0:02:57]}  Nf6 {[%clk 0:02:59]} 2. c4 {[%clk 0:02:57]}  g6 {[%clk 0:03:00]} 3. Nc3 {[%clk 0:02:58]}  Bg7 {[%clk 0:03:00]} 4. g3 {[%clk 0:02:57]}  O-O {[%clk 0:03:01]} 5. Bg2 {[%clk 0:02:57]}  d6 {[%clk 0:03:02]} 6. Nf3 {[%clk 0:02:58]}  Nc6 {[%clk 0:03:03]} 7. O-O {[%clk 0:02:59]}  Bf5 {[%clk 0:03:03]} 8. b3 {[%clk 0:02:58]}  Ne4 {[%clk 0:03:03]} 9. Nd5 {[%clk 0:02:58]}  e6 {[%clk 0:02:56]} 10. Ne3 {[%clk 0:02:56]}  Nc3 {[%clk 0:02:51]} 11. Qd2 {[%clk 0:02:52]}  Ne4 {[%clk 0:02:51]} 12. Qb2 {[%clk 0:02:49]}  Nxd4 {[%clk 0:02:44]} 13. Nxd4 {[%clk 0:02:34]}  c5 {[%clk 0:02:43]} 14. Nec2 {[%clk 0:02:14]}  cxd4 {[%clk 0:02:35]} 15. Nxd4 {[%clk 0:02:15]}  Nc5 {[%clk 0:02:17]} 16. Rd1 {[%clk 0:02:03]}  Be4 {[%clk 0:02:06]} 17. f3 {[%clk 0:01:48]}  Bc6 {[%clk 0:02:03]} 18. e4 {[%clk 0:01:45]}  d5 {[%clk 0:01:48]} 19. Be3 {[%clk 0:01:20]}  dxe4 {[%clk 0:00:57]} 20. Nxc6 {[%clk 0:01:11]}  Bxb2 {[%clk 0:00:47]} 21. Nxd8 {[%clk 0:01:10]}  Rfxd8 {[%clk 0:00:33]} 22. Bxc5 {[%clk 0:01:09]}  Bxa1 {[%clk 0:00:32]} 23. Rxa1 {[%clk 0:01:10]}  exf3 {[%clk 0:00:22]} 24. Bxf3 {[%clk 0:01:10]}  Rd7 {[%clk 0:00:23]} 25. Be3 {[%clk 0:00:59]}  f6 {[%clk 0:00:23]} 26. Kf2 {[%clk 0:00:56]}  Kg7 {[%clk 0:00:23]} 27. b4 {[%clk 0:00:49]}  g5 {[%clk 0:00:23]} 28. c5 {[%clk 0:00:46]}  Rc8 {[%clk 0:00:22]} 29. Rc1 {[%clk 0:00:45]}  a6 {[%clk 0:00:22]} 30. a4 {[%clk 0:00:43]}  Kg6 {[%clk 0:00:22]} 31. b5 {[%clk 0:00:42]}  axb5 {[%clk 0:00:23]} 32. axb5 {[%clk 0:00:43]}  f5 {[%clk 0:00:24]} 33. Ke2 {[%clk 0:00:34]}  e5 {[%clk 0:00:23]} 34. c6 {[%clk 0:00:34]}  bxc6 {[%clk 0:00:24]} 35. Bxc6 {[%clk 0:00:34]}  Rdc7 {[%clk 0:00:20]} 36. Ra1 {[%clk 0:00:32]}  f4 {[%clk 0:00:19]} 37. Bb6 {[%clk 0:00:32]}  Rxc6 {[%clk 0:00:19]} 38. bxc6 {[%clk 0:00:30]}  Rxc6 {[%clk 0:00:20]} 39. Bf2 {[%clk 0:00:20]}  Rc2+ {[%clk 0:00:19]} 40. Kf1 {[%clk 0:00:18]}  Kf5 {[%clk 0:00:20]} 41. h3 {[%clk 0:00:16]}  h5 {[%clk 0:00:20]} 42. Ra5 {[%clk 0:00:16]}  g4 {[%clk 0:00:19]} 43. h4 {[%clk 0:00:10]}  f3 {[%clk 0:00:15]} 44. Ke1 {[%clk 0:00:09]}  Rc1+ {[%clk 0:00:14]} 45. Kd2 {[%clk 0:00:09]}  Rf1 {[%clk 0:00:15]} 46. Ke3 {[%clk 0:00:09]}  Rd1 {[%clk 0:00:13]} 47. Ra8 {[%clk 0:00:08]}  Rb1 {[%clk 0:00:13]} 48. Rh8 {[%clk 0:00:07]}  Rb3+ {[%clk 0:00:13]} 49. Kd2 {[%clk 0:00:07]}  Rb2+ {[%clk 0:00:14]} 50. Ke1 {[%clk 0:00:08]}  Rb1+ {[%clk 0:00:15]} 51. Kd2 {[%clk 0:00:07]}  Rb2+ {[%clk 0:00:16]} 52. Ke3 {[%clk 0:00:05]}  Re2+ {[%clk 0:00:15]} 53. Kd3 {[%clk 0:00:05]}  Rxf2 {[%clk 0:00:10]} 54. Rxh5+ {[%clk 0:00:05]}  Ke6 {[%clk 0:00:11]} 55. Rg5 {[%clk 0:00:05]}  Ra2 {[%clk 0:00:09]} 56. Rg6+ {[%clk 0:00:03]}  Kf5 {[%clk 0:00:09]} 57. Rg8 {[%clk 0:00:04]}  e4+ {[%clk 0:00:07]} 58. Kd4 {[%clk 0:00:04]}  Rd2+ {[%clk 0:00:07]} 59. Ke3 {[%clk 0:00:04]}  Rd3+ {[%clk 0:00:07]} 60. Kf2 {[%clk 0:00:04]}  e3+ {[%clk 0:00:08]} 61. Kf1 {[%clk 0:00:03]}  Rd1# {[%clk 0:00:07]} 0-1


[Site "https://www.chess.com"]

[Event "Titled Tuesday Blitz March 28 Late 2023"]
[White "Van Foreest, Lucas"]
[Black "Anton Guijarro, David"]
[WhiteFideId "1039792"]
[BlackFideId "2285525"]
[WhiteElo "2519"]
[BlackElo "2618"]
[Result "1/2-1/2"]
[Round "06"]
[TimeControl "180+2"]
[Date "2023.03.28"]
[WhiteClock "0:00:25"]
[BlackClock "0:00:06"]

1. e4 {[%clk 0:03:00]}  c6 {[%clk 0:02:59]} 2. Qg4 {[%clk 0:03:01]}  d5 {[%clk 0:02:57]} 3. Qh4 {[%clk 0:03:01]}  dxe4 {[%clk 0:02:56]} 4. Nc3 {[%clk 0:03:02]}  Nf6 {[%clk 0:02:52]} 5. d3 {[%clk 0:03:02]}  e5 {[%clk 0:02:48]} 6. Nxe4 {[%clk 0:03:01]}  Be7 {[%clk 0:02:43]} 7. Qg3 {[%clk 0:03:01]}  O-O {[%clk 0:02:37]} 8. Nf3 {[%clk 0:03:00]}  Nbd7 {[%clk 0:02:25]} 9. Nxf6+ {[%clk 0:03:00]}  Nxf6 {[%clk 0:02:23]} 10. Be2 {[%clk 0:02:57]}  e4 {[%clk 0:01:50]} 11. dxe4 {[%clk 0:02:57]}  Nxe4 {[%clk 0:01:51]} 12. Qf4 {[%clk 0:02:56]}  Qa5+ {[%clk 0:01:47]} 13. c3 {[%clk 0:02:56]}  Nxc3 {[%clk 0:01:30]} 14. Qd2 {[%clk 0:02:24]}  Bb4 {[%clk 0:01:30]} 15. O-O {[%clk 0:02:07]}  Nxe2+ {[%clk 0:01:28]} 16. Qxe2 {[%clk 0:02:07]}  Bg4 {[%clk 0:01:28]} 17. h3 {[%clk 0:02:06]}  Bh5 {[%clk 0:01:28]} 18. g4 {[%clk 0:02:04]}  Bg6 {[%clk 0:01:27]} 19. a3 {[%clk 0:02:04]}  Rfe8 {[%clk 0:01:25]} 20. Qc4 {[%clk 0:02:01]}  Bd6 {[%clk 0:01:24]} 21. b4 {[%clk 0:02:01]}  Qc7 {[%clk 0:01:20]} 22. Bb2 {[%clk 0:01:58]}  Re4 {[%clk 0:01:18]} 23. Qc3 {[%clk 0:01:54]}  Bf8 {[%clk 0:01:19]} 24. Rfe1 {[%clk 0:01:54]}  Rae8 {[%clk 0:01:18]} 25. Rxe4 {[%clk 0:01:54]}  Rxe4 {[%clk 0:01:18]} 26. Rd1 {[%clk 0:01:53]}  Re8 {[%clk 0:01:17]} 27. Ne5 {[%clk 0:01:52]}  Be4 {[%clk 0:01:12]} 28. Rd7 {[%clk 0:01:50]}  Qc8 {[%clk 0:00:59]} 29. Rxf7 {[%clk 0:01:44]}  Bd5 {[%clk 0:00:41]} 30. Rf5 {[%clk 0:01:36]}  Qe6 {[%clk 0:00:37]} 31. Nf3 {[%clk 0:01:34]}  Qd7 {[%clk 0:00:27]} 32. Re5 {[%clk 0:01:10]}  Rxe5 {[%clk 0:00:26]} 33. Nxe5 {[%clk 0:01:09]}  Qe6 {[%clk 0:00:25]} 34. Qe3 {[%clk 0:01:08]}  Bd6 {[%clk 0:00:20]} 35. f4 {[%clk 0:01:08]}  b6 {[%clk 0:00:18]} 36. f5 {[%clk 0:01:07]}  Qe7 {[%clk 0:00:18]} 37. Bc3 {[%clk 0:00:58]}  h6 {[%clk 0:00:10]} 38. Qd4 {[%clk 0:00:52]}  Qh4 {[%clk 0:00:10]} 39. Qe3 {[%clk 0:00:53]}  Qg5 {[%clk 0:00:09]} 40. Qxg5 {[%clk 0:00:45]}  hxg5 {[%clk 0:00:10]} 41. Kf2 {[%clk 0:00:45]}  Be7 {[%clk 0:00:10]} 42. Nf3 {[%clk 0:00:43]}  Bf6 {[%clk 0:00:10]} 43. Bd2 {[%clk 0:00:40]}  Bxf3 {[%clk 0:00:04]} 44. Kxf3 {[%clk 0:00:41]}  b5 {[%clk 0:00:04]} 45. Ke4 {[%clk 0:00:40]}  Kf7 {[%clk 0:00:05]} 46. Be3 {[%clk 0:00:36]}  a6 {[%clk 0:00:04]} 47. Bd4 {[%clk 0:00:33]}  Ke7 {[%clk 0:00:05]} 48. Bc5+ {[%clk 0:00:25]}  Kd7 {[%clk 0:00:05]} 49. Be3 {[%clk 0:00:24]}  Kd6 {[%clk 0:00:05]} 50. Bc5+ {[%clk 0:00:24]}  Kd7 {[%clk 0:00:05]} 51. Be3 {[%clk 0:00:25]}  Kd6 {[%clk 0:00:06]} 52. Bc5+ {[%clk 0:00:25]}  Kd7 {[%clk 0:00:06]} 1/2-1/2


[Site "https://www.chess.com"]

[Event "Titled Tuesday Blitz March 28 Late 2023"]
[White "Mendonca, Leon Luke"]
[Black "Drygalov, Andrey"]
[WhiteFideId "35028561"]
[BlackFideId "24171735"]
[WhiteElo "2464"]
[BlackElo "2471"]
[Result "1-0"]
[Round "06"]
[TimeControl "180+2"]
[Date "2023.03.28"]
[WhiteClock "0:00:18"]
[BlackClock "0:00:05"]

1. e4 {[%clk 0:03:00]}  c5 {[%clk 0:03:00]} 2. Nf3 {[%clk 0:03:01]}  d6 {[%clk 0:03:00]} 3. Bb5+ {[%clk 0:03:00]}  Nd7 {[%clk 0:03:00]} 4. a4 {[%clk 0:03:00]}  Nf6 {[%clk 0:03:00]} 5. Nc3 {[%clk 0:02:59]}  a6 {[%clk 0:03:00]} 6. Be2 {[%clk 0:02:59]}  e6 {[%clk 0:03:00]} 7. a5 {[%clk 0:02:57]}  Be7 {[%clk 0:03:00]} 8. O-O {[%clk 0:02:56]}  O-O {[%clk 0:03:01]} 9. d4 {[%clk 0:02:48]}  Qc7 {[%clk 0:02:40]} 10. d5 {[%clk 0:02:44]}  Ne5 {[%clk 0:01:59]} 11. Nxe5 {[%clk 0:02:34]}  dxe5 {[%clk 0:01:59]} 12. Bc4 {[%clk 0:02:35]}  Rd8 {[%clk 0:01:59]} 13. Qe2 {[%clk 0:02:31]}  exd5 {[%clk 0:01:59]} 14. Nxd5 {[%clk 0:02:32]}  Nxd5 {[%clk 0:01:58]} 15. Bxd5 {[%clk 0:02:33]}  Be6 {[%clk 0:01:56]} 16. c4 {[%clk 0:02:28]}  Bxd5 {[%clk 0:01:46]} 17. cxd5 {[%clk 0:02:28]}  Bd6 {[%clk 0:01:37]} 18. Be3 {[%clk 0:02:28]}  Rac8 {[%clk 0:01:38]} 19. Rfc1 {[%clk 0:02:27]}  Qd7 {[%clk 0:01:38]} 20. f3 {[%clk 0:02:26]}  f5 {[%clk 0:01:33]} 21. Ra3 {[%clk 0:02:24]}  Rc7 {[%clk 0:01:24]} 22. h3 {[%clk 0:02:12]}  Rdc8 {[%clk 0:01:13]} 23. Qd2 {[%clk 0:01:34]}  fxe4 {[%clk 0:01:03]} 24. fxe4 {[%clk 0:01:34]}  c4 {[%clk 0:01:04]} 25. Raa1 {[%clk 0:01:31]}  Qb5 {[%clk 0:01:04]} 26. Bb6 {[%clk 0:01:20]}  Bc5+ {[%clk 0:00:55]} 27. Bxc5 {[%clk 0:01:20]}  Qxc5+ {[%clk 0:00:55]} 28. Kh2 {[%clk 0:01:16]}  Qd4 {[%clk 0:00:55]} 29. Qe2 {[%clk 0:01:14]}  Rf8 {[%clk 0:00:53]} 30. Rf1 {[%clk 0:01:08]}  Rd8 {[%clk 0:00:35]} 31. Rf3 {[%clk 0:01:03]}  h6 {[%clk 0:00:34]} 32. Raf1 {[%clk 0:01:02]}  Qc5 {[%clk 0:00:35]} 33. Qd2 {[%clk 0:01:01]}  Qd4 {[%clk 0:00:33]} 34. Qe2 {[%clk 0:00:58]}  Qc5 {[%clk 0:00:33]} 35. Qe1 {[%clk 0:00:58]}  Qd6 {[%clk 0:00:31]} 36. Rf5 {[%clk 0:00:57]}  Re8 {[%clk 0:00:28]} 37. Qc3 {[%clk 0:00:56]}  Kh7 {[%clk 0:00:27]} 38. R1f3 {[%clk 0:00:49]}  Ree7 {[%clk 0:00:22]} 39. Rf8 {[%clk 0:00:49]}  Red7 {[%clk 0:00:19]} 40. Qe1 {[%clk 0:00:37]}  Qg6 {[%clk 0:00:16]} 41. Rb8 {[%clk 0:00:32]}  Rf7 {[%clk 0:00:14]} 42. Rg3 {[%clk 0:00:29]}  Qf6 {[%clk 0:00:14]} 43. Re8 {[%clk 0:00:28]}  Rce7 {[%clk 0:00:14]} 44. Rf3 {[%clk 0:00:27]}  Qd6 {[%clk 0:00:13]} 45. Rxf7 {[%clk 0:00:19]}  Rxf7 {[%clk 0:00:14]} 46. Qg3 {[%clk 0:00:20]}  Rf4 {[%clk 0:00:11]} 47. Re6 {[%clk 0:00:17]}  Qc7 {[%clk 0:00:07]} 48. d6 {[%clk 0:00:18]}  Qd7 {[%clk 0:00:05]} 49. Re7 {[%clk 0:00:18]} 1-0


[Site "https://www.chess.com"]

[Event "Titled Tuesday Blitz March 28 Late 2023"]
[White "Terry, Renato"]
[Black "Wagner, Dennis"]
[WhiteFideId "3803457"]
[BlackFideId "24650684"]
[WhiteElo "2579"]
[BlackElo "2470"]
[Result "1-0"]
[Round "06"]
[TimeControl "180+2"]
[Date "2023.03.28"]
[WhiteClock "0:00:03"]
[BlackClock "0:00:02"]

1. Nf3 {[%clk 0:03:00]}  c5 {[%clk 0:02:59]} 2. b3 {[%clk 0:02:59]}  d5 {[%clk 0:02:57]} 3. e3 {[%clk 0:02:59]}  Nc6 {[%clk 0:02:55]} 4. Bb5 {[%clk 0:02:58]}  Bd7 {[%clk 0:02:56]} 5. Bb2 {[%clk 0:02:58]}  e6 {[%clk 0:02:53]} 6. O-O {[%clk 0:02:58]}  Nf6 {[%clk 0:02:53]} 7. Bxc6 {[%clk 0:02:51]}  Bxc6 {[%clk 0:02:53]} 8. Ne5 {[%clk 0:02:52]}  Rc8 {[%clk 0:02:54]} 9. d3 {[%clk 0:02:51]}  Bd6 {[%clk 0:02:53]} 10. Nd2 {[%clk 0:02:52]}  Bxe5 {[%clk 0:02:26]} 11. Bxe5 {[%clk 0:02:52]}  O-O {[%clk 0:02:26]} 12. f4 {[%clk 0:02:40]}  Nd7 {[%clk 0:02:26]} 13. Bb2 {[%clk 0:02:40]}  f6 {[%clk 0:02:26]} 14. Qg4 {[%clk 0:02:38]}  Qe7 {[%clk 0:02:26]} 15. Rae1 {[%clk 0:02:37]}  e5 {[%clk 0:02:25]} 16. f5 {[%clk 0:02:04]}  a5 {[%clk 0:02:20]} 17. a4 {[%clk 0:02:02]}  Qf7 {[%clk 0:02:01]} 18. Rf3 {[%clk 0:01:58]}  d4 {[%clk 0:01:56]} 19. e4 {[%clk 0:01:53]}  b5 {[%clk 0:01:55]} 20. axb5 {[%clk 0:01:41]}  Bxb5 {[%clk 0:01:56]} 21. Rh3 {[%clk 0:01:21]}  Rfe8 {[%clk 0:01:53]} 22. c4 {[%clk 0:00:51]}  Bc6 {[%clk 0:01:49]} 23. Ra1 {[%clk 0:00:50]}  Ra8 {[%clk 0:01:46]} 24. Bc1 {[%clk 0:00:50]}  a4 {[%clk 0:01:44]} 25. bxa4 {[%clk 0:00:46]}  Bxa4 {[%clk 0:01:45]} 26. Qe2 {[%clk 0:00:36]}  Bd1 {[%clk 0:01:42]} 27. Qxd1 {[%clk 0:00:31]}  Rxa1 {[%clk 0:01:42]} 28. Nb3 {[%clk 0:00:30]}  Ra6 {[%clk 0:01:32]} 29. Rg3 {[%clk 0:00:28]}  Kh8 {[%clk 0:01:30]} 30. h3 {[%clk 0:00:21]}  Rb8 {[%clk 0:01:30]} 31. Qc2 {[%clk 0:00:20]}  Rab6 {[%clk 0:01:28]} 32. Nd2 {[%clk 0:00:21]}  Qh5 {[%clk 0:01:19]} 33. Rg4 {[%clk 0:00:19]}  Qh6 {[%clk 0:01:12]} 34. Nf1 {[%clk 0:00:18]}  Qh5 {[%clk 0:01:11]} 35. Nd2 {[%clk 0:00:17]}  Ra8 {[%clk 0:01:07]} 36. Nb3 {[%clk 0:00:13]}  Qe8 {[%clk 0:01:07]} 37. Kh2 {[%clk 0:00:08]}  Qb8 {[%clk 0:01:07]} 38. Nd2 {[%clk 0:00:09]}  Ra1 {[%clk 0:01:06]} 39. Qd1 {[%clk 0:00:07]}  Rb2 {[%clk 0:01:02]} 40. Rg3 {[%clk 0:00:05]}  Qf8 {[%clk 0:00:53]} 41. Nb3 {[%clk 0:00:05]}  Rxb3 {[%clk 0:00:51]} 42. Qxb3 {[%clk 0:00:06]}  Rxc1 {[%clk 0:00:51]} 43. Qb7 {[%clk 0:00:07]}  Qd8 {[%clk 0:00:47]} 44. Rf3 {[%clk 0:00:06]}  Ra1 {[%clk 0:00:39]} 45. Rf2 {[%clk 0:00:05]}  Ra8 {[%clk 0:00:39]} 46. Qc6 {[%clk 0:00:04]}  Rc8 {[%clk 0:00:38]} 47. Qe6 {[%clk 0:00:04]}  Nf8 {[%clk 0:00:36]} 48. Qf7 {[%clk 0:00:05]}  Qe8 {[%clk 0:00:30]} 49. Qd5 {[%clk 0:00:05]}  Qd7 {[%clk 0:00:27]} 50. Rb2 {[%clk 0:00:03]}  Qxd5 {[%clk 0:00:27]} 51. exd5 {[%clk 0:00:04]}  g6 {[%clk 0:00:25]} 52. g4 {[%clk 0:00:04]}  gxf5 {[%clk 0:00:26]} 53. gxf5 {[%clk 0:00:05]}  Kg7 {[%clk 0:00:26]} 54. Rb7+ {[%clk 0:00:05]}  Kh6 {[%clk 0:00:27]} 55. h4 {[%clk 0:00:06]}  Rd8 {[%clk 0:00:22]} 56. Rf7 {[%clk 0:00:06]}  Nd7 {[%clk 0:00:22]} 57. Kg3 {[%clk 0:00:06]}  e4 {[%clk 0:00:19]} 58. dxe4 {[%clk 0:00:06]}  Rg8+ {[%clk 0:00:17]} 59. Kf2 {[%clk 0:00:06]}  Ne5 {[%clk 0:00:17]} 60. Rxf6+ {[%clk 0:00:07]}  Kh5 {[%clk 0:00:18]} 61. Re6 {[%clk 0:00:05]}  Ng4+ {[%clk 0:00:16]} 62. Ke2 {[%clk 0:00:05]}  Ra8 {[%clk 0:00:16]} 63. d6 {[%clk 0:00:04]}  Ra2+ {[%clk 0:00:15]} 64. Kf3 {[%clk 0:00:04]}  Nh2+ {[%clk 0:00:15]} 65. Kf4 {[%clk 0:00:02]}  Ng4 {[%clk 0:00:12]} 66. d7 {[%clk 0:00:01]}  Rf2+ {[%clk 0:00:04]} 67. Kg3 {[%clk 0:00:02]}  Rf1 {[%clk 0:00:01]} 68. d8=Q {[%clk 0:00:02]}  Rg1+ {[%clk 0:00:02]} 69. Kf3 {[%clk 0:00:02]}  Rf1+ {[%clk 0:00:03]} 70. Ke2 {[%clk 0:00:03]}  Rf2+ {[%clk 0:00:03]} 71. Ke1 {[%clk 0:00:03]}  d3 {[%clk 0:00:02]} 72. Qg5# {[%clk 0:00:03]} 1-0


[Site "https://www.chess.com"]

[Event "Titled Tuesday Blitz March 28 Late 2023"]
[White "koteRV1610"]
[Black "Grigoriants, Sergey"]
[BlackFideId "4130804"]
[WhiteElo "2531"]
[BlackElo "2502"]
[Result "0-1"]
[Round "06"]
[TimeControl "180+2"]
[Date "2023.03.28"]
[WhiteClock "0:00:02"]
[BlackClock "0:00:14"]

1. Nf3 {[%clk 0:03:00]}  d5 {[%clk 0:02:55]} 2. g3 {[%clk 0:02:59]}  c6 {[%clk 0:02:48]} 3. Bg2 {[%clk 0:02:59]}  Bg4 {[%clk 0:02:48]} 4. O-O {[%clk 0:02:54]}  e6 {[%clk 0:02:48]} 5. d3 {[%clk 0:02:54]}  Bd6 {[%clk 0:02:47]} 6. Nbd2 {[%clk 0:02:54]}  Ne7 {[%clk 0:02:48]} 7. e4 {[%clk 0:02:53]}  Nd7 {[%clk 0:02:48]} 8. Re1 {[%clk 0:02:54]}  O-O {[%clk 0:02:48]} 9. h3 {[%clk 0:02:49]}  Bh5 {[%clk 0:02:48]} 10. g4 {[%clk 0:02:49]}  Bg6 {[%clk 0:02:47]} 11. Nf1 {[%clk 0:02:42]}  Qc7 {[%clk 0:02:46]} 12. Qe2 {[%clk 0:02:38]}  Bf4 {[%clk 0:02:41]} 13. Bxf4 {[%clk 0:01:52]}  Qxf4 {[%clk 0:02:40]} 14. Qe3 {[%clk 0:01:51]}  Qxe3 {[%clk 0:02:28]} 15. Rxe3 {[%clk 0:01:52]}  a5 {[%clk 0:02:27]} 16. Nh4 {[%clk 0:01:46]}  d4 {[%clk 0:02:11]} 17. Re2 {[%clk 0:01:40]}  e5 {[%clk 0:02:10]} 18. Ng3 {[%clk 0:01:37]}  Nc5 {[%clk 0:01:59]} 19. a3 {[%clk 0:01:29]}  Ne6 {[%clk 0:01:57]} 20. Rd2 {[%clk 0:01:14]}  Rfd8 {[%clk 0:01:46]} 21. a4 {[%clk 0:01:14]}  f6 {[%clk 0:01:41]} 22. Bf1 {[%clk 0:01:02]}  Bf7 {[%clk 0:01:39]} 23. Nhf5 {[%clk 0:01:03]}  Ng6 {[%clk 0:01:31]} 24. c3 {[%clk 0:01:01]}  Ngf4 {[%clk 0:01:30]} 25. c4 {[%clk 0:00:57]}  Nc5 {[%clk 0:01:29]} 26. Ra3 {[%clk 0:00:56]}  Ra6 {[%clk 0:01:29]} 27. h4 {[%clk 0:00:50]}  Rb6 {[%clk 0:01:25]} 28. g5 {[%clk 0:00:49]}  g6 {[%clk 0:01:20]} 29. Nh6+ {[%clk 0:00:48]}  Kg7 {[%clk 0:01:20]} 30. Nxf7 {[%clk 0:00:47]}  Kxf7 {[%clk 0:01:21]} 31. gxf6 {[%clk 0:00:46]}  Kxf6 {[%clk 0:01:21]} 32. Ne2 {[%clk 0:00:44]}  Nxe2+ {[%clk 0:01:14]} 33. Bxe2 {[%clk 0:00:45]}  Rb4 {[%clk 0:01:10]} 34. Bd1 {[%clk 0:00:46]}  Rf8 {[%clk 0:01:10]} 35. f3 {[%clk 0:00:42]}  Kg7 {[%clk 0:01:08]} 36. Kg2 {[%clk 0:00:39]}  Rf4 {[%clk 0:01:08]} 37. Kg3 {[%clk 0:00:40]}  Kh6 {[%clk 0:01:08]} 38. Rh2 {[%clk 0:00:35]}  Kh5 {[%clk 0:01:03]} 39. Rd2 {[%clk 0:00:21]}  Kh6 {[%clk 0:01:00]} 40. Rh2 {[%clk 0:00:21]}  Rf8 {[%clk 0:00:57]} 41. Rd2 {[%clk 0:00:20]}  Ne6 {[%clk 0:00:50]} 42. Rb3 {[%clk 0:00:20]}  Rxb3 {[%clk 0:00:47]} 43. Bxb3 {[%clk 0:00:21]}  Kg7 {[%clk 0:00:46]} 44. Bd1 {[%clk 0:00:20]}  Kf6 {[%clk 0:00:45]} 45. Rh2 {[%clk 0:00:18]}  h6 {[%clk 0:00:41]} 46. Rc2 {[%clk 0:00:14]}  b6 {[%clk 0:00:39]} 47. Rh2 {[%clk 0:00:13]}  Ke7 {[%clk 0:00:39]} 48. h5 {[%clk 0:00:12]}  g5 {[%clk 0:00:40]} 49. Rc2 {[%clk 0:00:12]}  Kd6 {[%clk 0:00:40]} 50. Rh2 {[%clk 0:00:12]}  Kc5 {[%clk 0:00:39]} 51. Be2 {[%clk 0:00:11]}  Kb4 {[%clk 0:00:38]} 52. Bf1 {[%clk 0:00:11]}  Nc5 {[%clk 0:00:37]} 53. Rd2 {[%clk 0:00:09]}  Rf4 {[%clk 0:00:33]} 54. Bh3 {[%clk 0:00:09]}  Rh4 {[%clk 0:00:33]} 55. Bg4 {[%clk 0:00:03]}  Rh1 {[%clk 0:00:33]} 56. Kg2 {[%clk 0:00:02]}  Re1 {[%clk 0:00:33]} 57. Kf2 {[%clk 0:00:03]}  Re3 {[%clk 0:00:33]} 58. Kg3 {[%clk 0:00:03]}  Nxd3 {[%clk 0:00:32]} 59. Bd7 {[%clk 0:00:04]}  Ne1 {[%clk 0:00:21]} 60. Kg4 {[%clk 0:00:02]}  d3 {[%clk 0:00:18]} 61. Kf5 {[%clk 0:00:01]}  Nxf3 {[%clk 0:00:18]} 62. Rd1 {[%clk 0:00:01]}  d2 {[%clk 0:00:17]} 63. Bxc6 {[%clk 0:00:02]}  Re1 {[%clk 0:00:17]} 64. Rxd2 {[%clk 0:00:02]}  Nxd2 {[%clk 0:00:18]} 65. Kxe5 {[%clk 0:00:02]}  Nxc4+ {[%clk 0:00:14]} 66. Kf6 {[%clk 0:00:02]}  Kc5 {[%clk 0:00:14]} 67. Ba8 {[%clk 0:00:02]}  Kd4 {[%clk 0:00:13]} 68. Kg6 {[%clk 0:00:02]}  g4 {[%clk 0:00:13]} 69. Kxh6 {[%clk 0:00:02]}  Ne5 {[%clk 0:00:14]} 0-1


[Site "https://www.chess.com"]

[Event "Titled Tuesday Blitz March 28 Late 2023"]
[White "Silva, Pedro Gil Ferreira Da"]
[Black "Drygalov, Sergey"]
[WhiteFideId "1946102"]
[BlackFideId "24171743"]
[WhiteElo "2255"]
[BlackElo "2533"]
[Result "0-1"]
[Round "06"]
[TimeControl "180+2"]
[Date "2023.03.28"]
[WhiteClock "0:01:46"]
[BlackClock "0:01:46"]

1. c4 {[%clk 0:03:00]}  e5 {[%clk 0:02:57]} 2. Nc3 {[%clk 0:02:59]}  Nf6 {[%clk 0:02:58]} 3. Nf3 {[%clk 0:03:00]}  Nc6 {[%clk 0:02:58]} 4. e4 {[%clk 0:03:00]}  Bb4 {[%clk 0:02:58]} 5. d3 {[%clk 0:02:59]}  d6 {[%clk 0:02:57]} 6. g3 {[%clk 0:02:59]}  Bc5 {[%clk 0:02:56]} 7. Bg2 {[%clk 0:02:59]}  a6 {[%clk 0:02:55]} 8. O-O {[%clk 0:02:59]}  O-O {[%clk 0:02:55]} 9. h3 {[%clk 0:02:57]}  Rb8 {[%clk 0:02:53]} 10. Kh2 {[%clk 0:02:56]}  b5 {[%clk 0:02:53]} 11. Be3 {[%clk 0:02:50]}  bxc4 {[%clk 0:02:52]} 12. dxc4 {[%clk 0:02:48]}  Bxe3 {[%clk 0:02:51]} 13. fxe3 {[%clk 0:02:48]}  Rxb2 {[%clk 0:02:52]} 14. Nh4 {[%clk 0:02:44]}  Be6 {[%clk 0:02:45]} 15. Nf5 {[%clk 0:02:43]}  Bxc4 {[%clk 0:02:40]} 16. Rf3 {[%clk 0:02:34]}  Ne7 {[%clk 0:02:33]} 17. Qc1 {[%clk 0:02:15]}  Rb8 {[%clk 0:02:32]} 18. Nh4 {[%clk 0:02:00]}  Ng6 {[%clk 0:02:28]} 19. Nf5 {[%clk 0:02:00]}  Be6 {[%clk 0:02:23]} 20. g4 {[%clk 0:01:56]}  d5 {[%clk 0:02:22]} 21. exd5 {[%clk 0:01:56]}  Nxd5 {[%clk 0:02:22]} 22. Ne4 {[%clk 0:01:55]}  Nh4 {[%clk 0:02:13]} 23. Rg3 {[%clk 0:01:53]}  Bxf5 {[%clk 0:02:07]} 24. gxf5 {[%clk 0:01:50]}  Nxf5 {[%clk 0:02:07]} 25. Rg5 {[%clk 0:01:50]}  Ndxe3 {[%clk 0:02:03]} 26. Qc6 {[%clk 0:01:48]}  Rb2 {[%clk 0:01:56]} 27. Rg1 {[%clk 0:01:46]}  h6 {[%clk 0:01:46]} 0-1


[Site "https://www.chess.com"]